[Event "Teplice Open 2019"]
[Site "Teplice"]
[Date "2019.06.22"]
[Round "8.30"]
[White "Cernousek, Lukas"]
[Black "Cholleti Sahajasri"]
[Result "0-1"]
[ECO "B51"]
[WhiteElo "2466"]
[BlackElo "2207"]
[Annotator "ChessBase"]
[PlyCount "82"]
[EventDate "2019.06.15"]
[EventType "swiss"]
[EventCountry "CZE"]
[SourceTitle "playchess.com"]
[Source "ChessBase"]
[SourceQuality "1"]
[TimeControl "40/5400+30:1800+30"]

1. e4 {[%emt 1:14:14]} c5 {[%emt 0:09:52]} 2. Nf3 {[%emt 0:00:07]} d6 {[%emt 0:00:25]} 3. Bb5+ {[%emt 0:00:06]} Nd7 {[%emt 0:00:50]} 4. d4 {[%emt 0:00:21]} cxd4 {[%emt 0:00:43]} 5. Qxd4 {[%emt 0:00:07]} a6 {[%emt 0:01:03]} 6. Bxd7+ {[%emt 0:00:28]} Bxd7 {[%emt 0:00:11]} 7. Nc3 {[%emt 0:00:08]} e5 {[%emt 0:03:09]} 8. Qd3 {[%emt 0:00:52]} h6 {[%emt 0:00:09]} 9. Nd2 {[%emt 0:07:30]} Rc8 {[%emt 0:07:34]} 10. Nc4 {[%emt 0:00:08]} Be6 {[%emt 0:02:02]} 11. Ne3 {[%emt 0:04:28]} Nf6 {[%emt 0:00:24]} 12. O-O {[%emt 0:00:07]} Be7 {[%emt 0:03:35]} 13. Bd2 {[%emt 0:22:12]} Qc7 {[%emt 0:06:27]} 14. Rfd1 {[%emt 0:06:38]} O-O {[%emt 0:03:42]} 15. Rac1 {[%emt 0:04:43]} Bc4 {[%emt 0:21:37]} 16. Nxc4 {[%emt 0:10:48]} Qxc4 {[%emt 0:01:44]} 17. Qf3 {[%emt 0:00:11]} b5 {[%emt 0:03:29]} 18. Be1 {[%emt 0:02:24]} Rfd8 {[%emt 0:02:38]} 19. b3 {[%emt 0:03:54]} Qc6 {[%emt 0:04:19]} 20. Qd3 {[%emt 0:09:03]} Qb7 {[%emt 0:03:20]} 21. Ra1 {[%emt 0:14:21]} Rc5 {[%emt 0:02:19]} 22. Nd5 {[%emt 0:02:28]} Nxd5 {[%emt 0:00:29]} 23. exd5 {[%emt 0:00:02]} Rdc8 {[%emt 0:00:36]} 24. c3 {[%emt 0:00:01]} Bg5 {[%emt 0:05:30]} 25. a4 {[%emt 0:04:59]} bxa4 {[%emt 0:03:29]} 26. b4 {[%emt 0:00:04]} Rc4 {[%emt 0:02:44]} 27. Rxa4 {[%emt 0:00:02]} e4 {[%emt 0:01:56]} 28. Qg3 {[%emt 0:00:24]} Be7 {[%emt 0:02:41]} 29. Ra5 {[%emt 0:00:35]} Bd8 {[%emt 0:00:47]} 30. Ra3 {[%emt 0:00:30]} Be7 {[%emt 0:02:39]} 31. Rda1 {[%emt 0:02:29]} Qxd5 {[%emt 0:01:41]} 32. Rxa6 {[%emt 0:00:01]} Rd8 {[%emt 0:02:24]} 33. R6a5 {[%emt 0:03:06]} Qc6 {[%emt 0:00:26]} 34. b5 {[%emt 0:00:23]} Qb6 {[%emt 0:00:13]} 35. Qe3 {[%emt 0:00:06]} Qb8 {[%emt 0:02:01]} 36. b6 {[%emt 0:02:35]} Bg5 {[%emt 0:00:19]} 37. Qe2 {[%emt 0:00:03]} Rc6 {[%emt 0:00:32]} 38. Qxe4 {[%emt 0:01:05]} Qxb6 {[%emt 0:00:08]} 39. c4 {[%emt 0:01:50]} Bf6 {[%emt 0:00:22]} 40. R1a4 {[%emt 0:00:34]} Rc5 {[%emt 0:01:20]} 41. Ra8 {[%emt 0:06:53]} Re5 {[%emt 0:04:07]} 0-1

[Event "Teplice Open 2019"]
[Site "Teplice"]
[Date "2019.06.22"]
[Round "8.31"]
[White "Haldorsen, Benjamin"]
[Black "Balinski, Damian"]
[Result "1-0"]
[ECO "B09"]
[WhiteElo "2454"]
[BlackElo "2170"]
[Annotator "ChessBase"]
[PlyCount "75"]
[EventDate "2019.06.15"]
[EventType "swiss"]
[EventCountry "CZE"]
[SourceTitle "playchess.com"]
[Source "ChessBase"]
[SourceQuality "1"]
[TimeControl "40/5400+30:1800+30"]

1. e4 {[%emt 0:04:34]} d6 {[%emt 0:00:00]} 2. d4 {[%emt 0:01:02]} Nf6 {[%emt 0:00:00]} 3. Nc3 {[%emt 0:00:12]} g6 {[%emt 0:00:00]} 4. f4 {[%emt 0:00:11]} Bg7 {[%emt 0:00:00]} 5. a3 {[%emt 0:00:05]} O-O {[%emt 0:00:30]} 6. Nf3 {[%emt 0:00:03]} Na6 {[%emt 0:00:36]} 7. e5 {[%emt 0:01:14]} dxe5 {[%emt 0:17:47]} 8. fxe5 {[%emt 0:04:54]} Nd5 {[%emt 0:06:22]} 9. Bc4 {[%emt 0:06:33]} Nb6 {[%emt 0:20:50]} 10. Ba2 {[%emt 0:02:19]} c5 {[%emt 0:07:28]} 11. d5 {[%emt 0:02:49]} Bg4 {[%emt 0:00:47]} 12. Bf4 {[%emt 0:02:40]} Nd7 {[%emt 0:06:21]} 13. Qe2 {[%emt 0:05:22]} Qb8 {[%emt 0:03:42]} 14. O-O-O {[%emt 0:05:07]} Bxf3 {[%emt 0:06:15]} 15. gxf3 {[%emt 0:02:42]} Nxe5 {[%emt 0:00:24]} 16. Bg3 {[%emt 0:01:54]} f6 {[%emt 0:13:45]} 17. d6+ {[%emt 0:09:26]} Kh8 {[%emt 0:00:01]} 18. f4 {[%emt 0:10:42]} Nc6 {[%emt 0:00:24]} 19. f5 {[%emt 0:04:17]} exd6 {[%emt 0:10:13]} 20. Bxd6 {[%emt 0:00:25]} Qc8 {[%emt 0:00:26]} 21. Bxf8 {[%emt 0:03:56]} Qxf8 {[%emt 0:02:13]} 22. fxg6 {[%emt 0:00:05]} hxg6 {[%emt 0:00:42]} 23. Rhg1 {[%emt 0:01:05]} Ne5 {[%emt 0:00:32]} 24. Qe4 {[%emt 0:02:42]} Nb8 {[%emt 0:01:14]} 25. Nd5 {[%emt 0:04:00]} Nbc6 {[%emt 0:00:30]} 26. Kb1 {[%emt 0:00:01]} f5 {[%emt 0:00:51]} 27. Qh4+ {[%emt 0:01:14]} Bh6 {[%emt 0:00:02]} 28. Nf4 {[%emt 0:00:30]} Kh7 {[%emt 0:00:46]} 29. Ne6 {[%emt 0:01:43]} Qe7 {[%emt 0:00:33]} 30. Qxe7+ {[%emt 0:01:34]} Nxe7 {[%emt 0:00:01]} 31. Nxc5 {[%emt 0:00:10]} b6 {[%emt 0:00:45]} 32. Rge1 {[%emt 0:00:36]} N7c6 {[%emt 0:01:24]} 33. Nd7 {[%emt 0:01:09]} Nf3 {[%emt 0:00:26]} 34. Re6 {[%emt 0:00:09]} Rc8 {[%emt 0:00:38]} 35. c3 {[%emt 0:01:43]} Nxh2 {[%emt 0:00:23]} 36. Bd5 {[%emt 0:00:42]} Nd8 {[%emt 0:00:28]} 37. Re7+ {[%emt 0:00:09]} Kh8 {[%emt 0:00:05]} 38. Nf6 {[%emt 0:00:18]} 1-0

[Event "Teplice Open 2019"]
[Site "Teplice"]
[Date "2019.06.22"]
[Round "8.32"]
[White "Kett, Tim"]
[Black "Kirk, Ezra"]
[Result "0-1"]
[ECO "D00"]
[WhiteElo "2197"]
[BlackElo "2428"]
[Annotator "ChessBase"]
[PlyCount "122"]
[EventDate "2019.06.15"]
[EventType "swiss"]
[EventCountry "CZE"]
[SourceTitle "playchess.com"]
[Source "ChessBase"]
[SourceQuality "1"]
[TimeControl "40/5400+30:1800+30"]

1. d4 {[%emt 0:00:00]} Nf6 {[%emt 0:01:29]} 2. Nc3 {[%emt 0:00:00]} d5 {[%emt 0:01:17]} 3. Bf4 {[%emt 0:00:00]} c6 {[%emt 0:00:41]} 4. Qd2 {[%emt 0:05:42]} Nbd7 {[%emt 0:01:19]} 5. f3 {[%emt 0:03:45]} h6 {[%emt 0:11:19]} 6. e4 {[%emt 0:03:45]} e6 {[%emt 0:02:06]} 7. Bd3 {[%emt 0:05:15]} Qa5 {[%emt 0:01:45]} 8. e5 {[%emt 0:05:27]} Ng8 {[%emt 0:00:41]} 9. Nge2 {[%emt 0:00:38]} b5 {[%emt 0:03:48]} 10. O-O {[%emt 0:01:56]} Rb8 {[%emt 0:14:50]} 11. a3 {[%emt 0:09:34]} Qc7 {[%emt 0:04:21]} 12. Be3 {[%emt 0:05:58]} Ne7 {[%emt 0:03:32]} 13. Nd1 {[%emt 0:07:11]} Nb6 {[%emt 0:03:34]} 14. b3 {[%emt 0:00:43]} Nc4 {[%emt 0:02:39]} 15. Qe1 {[%emt 0:05:37]} Nxe3 {[%emt 0:06:37]} 16. Nxe3 {[%emt 0:00:06]} c5 {[%emt 0:00:12]} 17. c3 {[%emt 0:01:42]} c4 {[%emt 0:00:58]} 18. bxc4 {[%emt 0:00:12]} bxc4 {[%emt 0:02:18]} 19. Bc2 {[%emt 0:00:10]} h5 {[%emt 0:03:30]} 20. g3 {[%emt 0:11:01]} Bd7 {[%emt 0:01:58]} 21. h3 {[%emt 0:01:10]} g6 {[%emt 0:01:17]} 22. g4 {[%emt 0:01:23]} Rb2 {[%emt 0:01:13]} 23. Rb1 {[%emt 0:09:26]} Rxb1 {[%emt 0:01:34]} 24. Qxb1 {[%emt 0:00:17]} Qb6 {[%emt 0:00:33]} 25. Qc1 {[%emt 0:03:34]} Nc6 {[%emt 0:01:10]} 26. f4 {[%emt 0:00:54]} Kd8 {[%emt 0:04:13]} 27. Kg2 {[%emt 0:01:23]} Kc8 {[%emt 0:03:41]} 28. a4 {[%emt 0:05:08]} Qd8 {[%emt 0:02:04]} 29. Rh1 {[%emt 0:02:47]} Be7 {[%emt 0:07:16]} 30. Ng1 {[%emt 0:02:02]} hxg4 {[%emt 0:02:18]} 31. hxg4 {[%emt 0:00:20]} Rxh1 {[%emt 0:00:10]} 32. Kxh1 {[%emt 0:00:03]} Na5 {[%emt 0:01:05]} 33. Nf3 {[%emt 0:00:33]} Qb6 {[%emt 0:00:56]} 34. f5 {[%emt 0:01:24]} Nb3 {[%emt 0:01:13]} 35. Qe1 {[%emt 0:02:24]} gxf5 {[%emt 0:01:01]} 36. gxf5 {[%emt 0:00:04]} Qa5 {[%emt 0:00:14]} 37. f6 {[%emt 0:00:56]} Bd8 {[%emt 0:00:26]} 38. Ng5 {[%emt 0:05:21]} Be8 {[%emt 0:00:11]} 39. Bg6 {[%emt 0:00:53]} fxg6 {[%emt 0:04:46]} 40. Nxe6 {[%emt 0:00:13]} Qb6 {[%emt 0:02:52]} 41. Nf4 {[%emt 0:14:16]} g5 {[%emt 0:01:50]} 42. Nfxd5 {[%emt 0:01:11]} Qc6 {[%emt 0:06:51]} 43. Kg1 {[%emt 0:01:12]} Bf7 {[%emt 0:00:59]} 44. Nb4 {[%emt 0:01:25]} Qe4 {[%emt 0:01:33]} 45. Ng2 {[%emt 0:02:45]} Qg4 {[%emt 0:00:48]} 46. Nc2 {[%emt 0:02:03]} Bb6 {[%emt 0:01:01]} 47. Nce3 {[%emt 0:01:01]} Qe4 {[%emt 0:01:46]} 48. Qg3 {[%emt 0:01:13]} Nxd4 {[%emt 0:06:51]} 49. cxd4 {[%emt 0:00:07]} c3 {[%emt 0:00:35]} 50. Qxg5 {[%emt 0:03:17]} Bxd4 {[%emt 0:00:45]} 51. Qh6 {[%emt 0:01:01]} Kd7 {[%emt 0:03:29]} 52. e6+ {[%emt 0:06:53]} Bxe6 {[%emt 0:00:50]} 53. Qg7+ {[%emt 0:00:23]} Kc6 {[%emt 0:00:41]} 54. Qg5 {[%emt 0:00:16]} c2 {[%emt 0:01:49]} 55. Qb5+ {[%emt 0:00:31]} Kc7 {[%emt 0:00:23]} 56. Qa5+ {[%emt 0:00:04]} Kd7 {[%emt 0:03:39]} 57. Qd2 {[%emt 0:00:15]} Bd5 {[%emt 0:00:19]} 58. Kf1 {[%emt 0:00:44]} Bc4+ {[%emt 0:02:26]} 59. Kf2 {[%emt 0:01:00]} Qd3 {[%emt 0:00:53]} 60. Qe1 {[%emt 0:00:45]} Qf1+ {[%emt 0:01:02]} 61. Qxf1 {[%emt 0:00:22]} Bxf1 {[%emt 0:00:09]} 0-1

[Event "Teplice Open 2019"]
[Site "Teplice"]
[Date "2019.06.22"]
[Round "8.33"]
[White "Kucera, Petr"]
[Black "Handler, Lukas"]
[Result "0-1"]
[ECO "D02"]
[WhiteElo "2248"]
[BlackElo "2418"]
[Annotator "NA"]
[PlyCount "84"]
[EventDate "2019.06.15"]
[EventType "swiss"]
[EventCountry "CZE"]
[SourceTitle "playchess.com"]
[Source "ChessBase"]
[SourceQuality "1"]
[TimeControl "40/5400+30:1800+30"]

1. d4 {[%emt 0:01:28]} d5 {[%emt 0:00:42]} 2. Nf3 {[%emt 0:00:32]} Nf6 {[%emt 0:00:32]} 3. Bf4 {[%emt 0:00:47]} c5 {[%emt 0:00:20]} 4. c3 {[%emt 0:02:38]} Nc6 {[%emt 0:00:50]} 5. e3 {[%emt 0:00:30]} Qb6 {[%emt 0:00:21]} 6. Qb3 {[%emt 0:11:21]} c4 {[%emt 0:00:06]} 7. Qc2 {[%emt 0:00:13]} Bf5 {[%emt 0:04:03]} 8. Qc1 {[%emt 0:00:20]} e6 {[%emt 0:02:54]} 9. h3 {[%emt 0:05:54]} h6 {[%emt 0:01:34]} 10. Nbd2 {[%emt 0:02:58]} Rc8 {[%emt 0:00:59]} 11. Be2 {[%emt 0:00:45]} Be7 {[%emt 0:03:00]} 12. O-O {[%emt 0:02:01]} O-O {[%emt 0:00:38]} 13. Re1 {[%emt 0:07:47]} Qd8 {[%emt 0:13:09]} 14. Bd1 {[%emt 0:06:48]} b5 {[%emt 0:07:25]} 15. Bc2 {[%emt 0:10:33]} Bxc2 {[%emt 0:01:08]} 16. Qxc2 {[%emt 0:00:15]} b4 {[%emt 0:19:09]} 17. e4 {[%emt 0:03:34]} dxe4 {[%emt 0:01:46]} 18. Nxe4 {[%emt 0:00:26]} Nd5 {[%emt 0:00:00]} 19. Bh2 {[%emt 0:05:38]} Qa5 {[%emt 0:04:13]} 20. Nfd2 {[%emt 0:10:12]} Qa6 {[%emt 0:01:26]} 21. Nc5 {[%emt 0:07:21]} Qb5 {[%emt 0:06:30]} 22. a4 {[%emt 0:01:54]} bxa3 {[%emt 0:01:48]} 23. Rxa3 {[%emt 0:00:38]} Rfd8 {[%emt 0:15:24]} 24. b3 {[%emt 0:07:33]} Bxc5 {[%emt 0:01:27]} 25. bxc4 {[%emt 0:01:02]} Nxd4 {[%emt 0:00:26]} 26. Qa2 {[%emt 0:06:19]} Qb6 {[%emt 0:04:12]} 27. cxd4 {[%emt 0:02:52]} Bxa3 {[%emt 0:00:35]} 28. cxd5 {[%emt 0:00:40]} Qb2 {[%emt 0:00:29]} 29. Qxb2 {[%emt 0:00:40]} Bxb2 {[%emt 0:00:04]} 30. dxe6 {[%emt 0:00:44]} fxe6 {[%emt 0:00:26]} 31. Nf3 {[%emt 0:00:34]} Bxd4 {[%emt 0:04:28]} 32. Bg3 {[%emt 0:00:10]} Kf7 {[%emt 0:00:33]} 33. Re4 {[%emt 0:00:35]} Bf6 {[%emt 0:00:33]} 34. Kh2 {[%emt 0:00:31]} a5 {[%emt 0:00:44]} 35. Ne5+ {[%emt 0:00:39]} Bxe5 {[%emt 0:00:19]} 36. Bxe5 {[%emt 0:00:14]} Rc5 {[%emt 0:00:35]} 37. Rf4+ {[%emt 0:00:47]} Kg8 {[%emt 0:00:11]} 38. Bb2 {[%emt 0:00:33]} Rd2 {[%emt 0:00:29]} 39. Ba3 {[%emt 0:00:31]} Rf5 {[%emt 0:00:12]} 40. Rg4 {[%emt 0:00:26]} Rfxf2 {[%emt 0:00:15]} 41. Bc1 {[%emt 0:30:27]} Rc2 {[%emt 0:30:24]} 42. Bxh6 {[%emt 0:00:24]} Rxg2+ {[%emt 0:00:07]} 0-1

[Event "Teplice Open 2019"]
[Site "Teplice"]
[Date "2019.06.22"]
[Round "8.34"]
[White "Mitscherling, Andreas"]
[Black "Halvax, Georg"]
[Result "0-1"]
[ECO "D00"]
[WhiteElo "2175"]
[BlackElo "2408"]
[Annotator "NA"]
[PlyCount "78"]
[EventDate "2019.06.15"]
[EventType "swiss"]
[EventCountry "CZE"]
[SourceTitle "playchess.com"]
[Source "ChessBase"]
[SourceQuality "1"]
[TimeControl "40/5400+30:1800+30"]

1. d4 {[%emt 0:02:46]} d5 {[%emt 0:00:00]} 2. Bf4 {[%emt 0:00:07]} Nf6 {[%emt 0:01:01]} 3. e3 {[%emt 0:00:07]} c5 {[%emt 0:00:20]} 4. dxc5 {[%emt 0:00:35]} Nc6 {[%emt 0:00:31]} 5. Nf3 {[%emt 0:00:10]} e6 {[%emt 0:00:16]} 6. Be2 {[%emt 0:00:31]} Bxc5 {[%emt 0:00:36]} 7. a3 {[%emt 0:01:10]} O-O {[%emt 0:00:20]} 8. c4 {[%emt 0:01:25]} Re8 {[%emt 0:02:52]} 9. Nc3 {[%emt 0:05:58]} h6 {[%emt 0:08:35]} 10. Ne5 {[%emt 0:06:30]} Bd6 {[%emt 0:03:28]} 11. Nxc6 {[%emt 0:00:34]} bxc6 {[%emt 0:00:10]} 12. Bxd6 {[%emt 0:00:05]} Qxd6 {[%emt 0:00:08]} 13. O-O {[%emt 0:01:52]} a5 {[%emt 0:01:53]} 14. Qc2 {[%emt 0:07:32]} Bd7 {[%emt 0:03:33]} 15. Rab1 {[%emt 0:14:20]} Reb8 {[%emt 0:00:52]} 16. e4 {[%emt 0:05:51]} d4 {[%emt 0:08:25]} 17. Na2 {[%emt 0:00:58]} c5 {[%emt 0:07:24]} 18. Nc1 {[%emt 0:00:08]} Bc6 {[%emt 0:00:42]} 19. f3 {[%emt 0:00:53]} Nd7 {[%emt 0:01:09]} 20. f4 {[%emt 0:02:13]} e5 {[%emt 0:00:59]} 21. f5 {[%emt 0:02:40]} Nf6 {[%emt 0:02:40]} 22. Bd3 {[%emt 0:10:58]} a4 {[%emt 0:02:05]} 23. h3 {[%emt 0:04:55]} Rb6 {[%emt 0:01:41]} 24. Re1 {[%emt 0:02:20]} Rab8 {[%emt 0:00:19]} 25. g4 {[%emt 0:03:23]} Qe7 {[%emt 0:01:08]} 26. Qg2 {[%emt 0:03:55]} Ne8 {[%emt 0:02:16]} 27. Re2 {[%emt 0:00:58]} Qg5 {[%emt 0:02:30]} 28. Qg3 {[%emt 0:07:08]} Nf6 {[%emt 0:02:47]} 29. Qxe5 {[%emt 0:02:11]} Rxb2 {[%emt 0:01:16]} 30. Qxb8+ {[%emt 0:03:53]} Rxb8 {[%emt 0:00:36]} 31. Rxb8+ {[%emt 0:00:05]} Kh7 {[%emt 0:00:03]} 32. Rb1 {[%emt 0:01:29]} Qf4 {[%emt 0:01:03]} 33. e5 {[%emt 0:00:22]} Qg3+ {[%emt 0:01:52]} 34. Kf1 {[%emt 0:00:05]} Qxh3+ {[%emt 0:00:05]} 35. Ke1 {[%emt 0:00:08]} Ne4 {[%emt 0:00:03]} 36. Kd1 {[%emt 0:06:48]} Nc3+ {[%emt 0:00:40]} 37. Kc2 {[%emt 0:00:01]} Nxe2 {[%emt 0:00:08]} 38. Nxe2 {[%emt 0:01:54]} Qe3 {[%emt 0:00:16]} 39. Rb6 {[%emt 0:01:29]} Be4 {[%emt 0:00:08]} 0-1

[Event "Teplice Open 2019"]
[Site "Teplice"]
[Date "2019.06.22"]
[Round "8.35"]
[White "Kaasen, Tor Fredrik"]
[Black "Sikora, Jan"]
[Result "1-0"]
[ECO "A36"]
[WhiteElo "2395"]
[BlackElo "2170"]
[Annotator "NA"]
[PlyCount "75"]
[EventDate "2019.06.15"]
[EventType "swiss"]
[EventCountry "CZE"]
[SourceTitle "playchess.com"]
[Source "ChessBase"]
[SourceQuality "1"]
[TimeControl "40/5400+30:1800+30"]

1. c4 {[%emt 0:04:37]} c5 {[%emt 0:00:10]} 2. g3 {[%emt 0:00:58]} g6 {[%emt 0:00:16]} 3. Bg2 {[%emt 0:00:12]} Bg7 {[%emt 0:00:04]} 4. Nc3 {[%emt 0:00:11]} Nc6 {[%emt 0:00:06]} 5. b3 {[%emt 0:00:31]} e6 {[%emt 0:11:21]} 6. Ba3 {[%emt 0:00:25]} d6 {[%emt 0:01:51]} 7. e3 {[%emt 0:00:27]} Nge7 {[%emt 0:01:48]} 8. Nge2 {[%emt 0:00:24]} O-O {[%emt 0:05:13]} 9. O-O {[%emt 0:00:16]} e5 {[%emt 0:05:27]} 10. d3 {[%emt 0:01:26]} Be6 {[%emt 0:07:02]} 11. Bb2 {[%emt 0:06:23]} Qc8 {[%emt 0:03:08]} 12. Ne4 {[%emt 0:05:13]} Rd8 {[%emt 0:02:46]} 13. f4 {[%emt 0:02:25]} f5 {[%emt 0:06:53]} 14. Ng5 {[%emt 0:03:59]} Bd7 {[%emt 0:09:48]} 15. Rb1 {[%emt 0:12:54]} h6 {[%emt 0:03:06]} 16. Nf3 {[%emt 0:00:44]} Kh7 {[%emt 0:01:46]} 17. a3 {[%emt 0:02:25]} Qc7 {[%emt 0:01:11]} 18. Qc2 {[%emt 0:03:43]} Rg8 {[%emt 0:07:37]} 19. Ba1 {[%emt 0:06:23]} a5 {[%emt 0:08:34]} 20. Nc3 {[%emt 0:02:43]} Rae8 {[%emt 0:00:32]} 21. Nb5 {[%emt 0:01:16]} Qb8 {[%emt 0:00:01]} 22. Rbd1 {[%emt 0:00:28]} Nd8 {[%emt 0:01:22]} 23. Rfe1 {[%emt 0:08:00]} Ne6 {[%emt 0:07:43]} 24. Bc3 {[%emt 0:08:36]} b6 {[%emt 0:01:57]} 25. fxe5 {[%emt 0:04:05]} dxe5 {[%emt 0:00:15]} 26. Qb2 {[%emt 0:00:05]} Nc6 {[%emt 0:01:56]} 27. d4 {[%emt 0:01:46]} exd4 {[%emt 0:01:02]} 28. exd4 {[%emt 0:00:16]} Nexd4 {[%emt 0:01:21]} 29. Nfxd4 {[%emt 0:00:13]} Nxd4 {[%emt 0:01:17]} 30. Nxd4 {[%emt 0:00:07]} cxd4 {[%emt 0:01:42]} 31. Bxd4 {[%emt 0:00:06]} Qd6 {[%emt 0:01:48]} 32. Bd5 {[%emt 0:01:25]} Rxe1+ {[%emt 0:01:43]} 33. Rxe1 {[%emt 0:00:07]} Kh8 {[%emt 0:03:49]} 34. Re5 {[%emt 0:10:43]} Qf8 {[%emt 0:01:54]} 35. Qd2 {[%emt 0:02:37]} Bxe5 {[%emt 0:00:23]} 36. Bxe5+ {[%emt 0:00:05]} Kh7 {[%emt 0:00:35]} 37. Bxg8+ {[%emt 0:00:06]} Kxg8 {[%emt 0:00:14]} 38. Qxd7 {[%emt 0:00:05]} 1-0

[Event "Teplice Open 2019"]
[Site "Teplice"]
[Date "2019.06.22"]
[Round "8.36"]
[White "Di Nicolantonio, Lucas"]
[Black "Bulockin, Martin"]
[Result "1-0"]
[ECO "A03"]
[WhiteElo "2379"]
[BlackElo "2165"]
[Annotator "NA"]
[PlyCount "103"]
[EventDate "2019.06.15"]
[EventType "swiss"]
[EventCountry "CZE"]
[SourceTitle "playchess.com"]
[Source "ChessBase"]
[SourceQuality "1"]
[TimeControl "40/5400+30:1800+30"]

1. f4 {[%emt 0:04:23]} d5 {[%emt 0:00:10]} 2. Nf3 {[%emt 0:00:11]} g6 {[%emt 0:00:29]} 3. g3 {[%emt 0:00:16]} c6 {[%emt 0:00:53]} 4. Bg2 {[%emt 0:00:16]} Bg7 {[%emt 0:00:08]} 5. d3 {[%emt 0:06:44]} Qb6 {[%emt 0:07:53]} 6. Nc3 {[%emt 0:06:25]} d4 {[%emt 0:02:19]} 7. Ne4 {[%emt 0:04:09]} Nd7 {[%emt 0:04:31]} 8. O-O {[%emt 0:14:39]} Nh6 {[%emt 0:09:24]} 9. e3 {[%emt 0:09:59]} dxe3 {[%emt 0:07:11]} 10. Qe2 {[%emt 0:00:25]} O-O {[%emt 0:03:47]} 11. c3 {[%emt 0:03:57]} c5 {[%emt 0:04:31]} 12. h3 {[%emt 0:05:00]} Nf5 {[%emt 0:07:33]} 13. g4 {[%emt 0:00:25]} Nd6 {[%emt 0:00:06]} 14. Bxe3 {[%emt 0:02:00]} Qc7 {[%emt 0:01:01]} 15. f5 {[%emt 0:13:26]} Nxe4 {[%emt 0:06:24]} 16. dxe4 {[%emt 0:00:05]} b6 {[%emt 0:00:28]} 17. e5 {[%emt 0:01:25]} Bb7 {[%emt 0:01:47]} 18. e6 {[%emt 0:08:02]} fxe6 {[%emt 0:01:00]} 19. fxg6 {[%emt 0:00:08]} hxg6 {[%emt 0:01:01]} 20. Ng5 {[%emt 0:07:50]} Qg3 {[%emt 0:04:08]} 21. Bf4 {[%emt 0:00:25]} Rxf4 {[%emt 0:03:18]} 22. Rxf4 {[%emt 0:00:07]} Bxg2 {[%emt 0:06:52]} 23. Qxg2 {[%emt 0:00:18]} Qxf4 {[%emt 0:00:17]} 24. Qxa8+ {[%emt 0:00:06]} Nf8 {[%emt 0:00:07]} 25. Ne4 {[%emt 0:03:37]} Qf3 {[%emt 0:02:26]} 26. Re1 {[%emt 0:05:03]} Qxh3 {[%emt 0:02:43]} 27. Nf2 {[%emt 0:00:21]} Qg3+ {[%emt 0:00:20]} 28. Qg2 {[%emt 0:00:12]} Qxg2+ {[%emt 0:06:16]} 29. Kxg2 {[%emt 0:00:05]} e5 {[%emt 0:00:55]} 30. Rd1 {[%emt 0:00:19]} Kf7 {[%emt 0:00:54]} 31. Ne4 {[%emt 0:00:24]} Ke8 {[%emt 0:01:28]} 32. Kf3 {[%emt 0:00:47]} Ne6 {[%emt 0:01:20]} 33. g5 {[%emt 0:01:57]} Bf8 {[%emt 0:01:11]} 34. Rd5 {[%emt 0:00:26]} Bg7 {[%emt 0:00:11]} 35. Rd2 {[%emt 0:00:15]} Bf8 {[%emt 0:01:08]} 36. a4 {[%emt 0:00:37]} a5 {[%emt 0:01:06]} 37. Rd5 {[%emt 0:00:44]} Bg7 {[%emt 0:00:01]} 38. Rd1 {[%emt 0:00:10]} Bh8 {[%emt 0:01:53]} 39. Kg4 {[%emt 0:00:28]} Bg7 {[%emt 0:01:13]} 40. Kf3 {[%emt 0:02:48]} Bh8 {[%emt 0:00:27]} 41. Rg1 {[%emt 0:14:23]} Kd7 {[%emt 0:12:07]} 42. Nd2 {[%emt 0:00:13]} e4+ {[%emt 0:00:22]} 43. Kxe4 {[%emt 0:01:03]} Kc6 {[%emt 0:02:08]} 44. Nf3 {[%emt 0:02:42]} c4 {[%emt 0:01:00]} 45. Nh4 {[%emt 0:00:50]} Nc5+ {[%emt 0:00:16]} 46. Ke3 {[%emt 0:00:59]} Nxa4 {[%emt 0:00:33]} 47. Nxg6 {[%emt 0:00:16]} Bg7 {[%emt 0:00:00]} 48. Nxe7+ {[%emt 0:00:43]} Kc5 {[%emt 0:00:39]} 49. Nf5 {[%emt 0:00:18]} Bxc3 {[%emt 0:00:48]} 50. bxc3 {[%emt 0:00:26]} Nxc3 {[%emt 0:00:02]} 51. g6 {[%emt 0:02:53]} Nd5+ {[%emt 0:00:05]} 52. Kd2 {[%emt 0:00:17]} 1-0